Cogmind - Beta 13 @@@ ROGUE MODE // 2024.04.10 @ 22:29:33 Player: Evilsquid Result: Destroyed by JC-7GV(R) with Subdweller Laser Performance ------------- Evolutions (0) 0 Regions Visited (2) 400 Robots Destroyed (28) 140 Value Destroyed (726) 726 Prototype IDs (0) 0 Alien Tech Used (0) 0 Bonus (0) 0 TOTAL SCORE: 1266 Bonus ------- None Cogmind --------- Core Integrity 0/250 Matter 31/300 Energy 194/200 System Corruption 6% Temperature Hot (207) Movement Core (950) Ox18 Location -10/Subcaves Parts ------- > --- POWER (1) -------- Subdweller Power Source > --- PROPULSION (2) --- (None) > --- UTILITY (2) ------ High-capacity Storage Unit > --- WEAPON (2) ------- Light Cannon Slug Cannon > --- INVENTORY (20) --- Wheel Heat Sink Structural Scanner Signal Interpreter Improved Terrain Scanner Seismic Detector ECM Suite Weapon Shielding Tractor Beam Small Laser Small Laser Battle Rifle Subdweller Machine Gun Makeshift Shrapnel Gun Battle Cannon Grenade Launcher Datajack Mining Laser Flamer Flamer Peak State ------------ > --- POWER ------------ Subdweller Power Source > --- PROPULSION ------- Light Treads Light Treads > --- UTILITY ---------- High-capacity Storage Unit Weapon Shielding > --- WEAPON ----------- Battle Rifle Makeshift Shrapnel Gun > --- INVENTORY -------- Wheel Heat Sink Structural Scanner Signal Interpreter Improved Terrain Scanner Seismic Detector ECM Suite Weapon Shielding Tractor Beam Small Laser Small Laser Subdweller Machine Gun Light Cannon Battle Cannon Slug Cannon Grenade Launcher Datajack Mining Laser Flamer Flamer [Rating: 14] Favorites ----------- Power Light Ion Engine Engine Light Ion Engine Propulsion Light Treads Treads Light Treads Wheel Wheel Utility High-capacity Storage Unit Device Heat Sink Storage High-capacity Storage Unit Protection Weapon Shielding Weapon Medium Laser Energy Gun Medium Laser Ballistic Gun Subdweller Machine Gun Ballistic Cannon Light Cannon Special Weapon Flamer Build | -11 -10 -10 ------- Run | Yrd Mat Sub Slots Evolved . | . . . Power . | . . . Propulsion . | . . . Utility . | . . . Weapon . | . . . Parts Attached 44 | 7 17 20 Power 9 | 1 2 6 Engine 9 | 1 2 6 Core . | . . . Reactor . | . . . Propulsion 12 | 2 8 2 Treads 11 | 2 7 2 Leg . | . . . Wheel 1 | . 1 . Hover . | . . . Flight . | . . . Utility 7 | 2 3 2 Device 4 | 1 2 1 Storage 2 | 1 1 . Processor . | . . . Hackware . | . . . Protection 1 | . . 1 Artifact . | . . . Weapon 16 | 2 4 10 Energy Gun 6 | 2 4 . Energy Cannon . | . . . Ballistic Gun 4 | . . 4 Ballistic Cannon 5 | . . 5 Launcher . | . . . Special Weapon 1 | . . 1 Impact Weapon . | . . . Slashing Weapon . | . . . Piercing Weapon . | . . . Special Melee Weapon . | . . . Unidentified Prototypes . | . . . Parts Lost 6 | . 2 4 Power 2 | . 1 1 Propulsion 2 | . . 2 Utility 1 | . . 1 Weapon 1 | . 1 . Highest Loss Streak 2 | . 1 2 To Critical Strikes 1 | . . 1 Average Slot Usage (%) 96 | . 98 95 Engine 12 | . 13 10 Treads 27 | . 27 28 Device 6 | . 13 . Storage 14 | . 14 14 Protection 7 | . . 12 Energy Gun 12 | . 27 . Ballistic Gun 12 | . . 21 Ballistic Cannon 3 | . . 5 Naked Turns . | . . . Heaviest Build 55 | 15 48 55 Greatest Support 40 | 40 40 40 Greatest Overweight (x) 4 | . 4 1 Average Overweight (x) . | . . 1 Largest Inventory Capacity 20 | 8 20 20 Average Capacity 17 | 7 14 20 Most Carried 20 | 3 19 20 Average Carried 15 | 1 11 19 Final Capacity 20 | 8 20 20 Final Carried 20 | 3 19 20 Class Distribution -------------------- 100% | Mutant Dominant Class ---------------- Mutant | -10/Materials Mutant | -10/Subcaves Resources | -11 -10 -10 ----------- Run | Yrd Mat Sub Matter Collected 997 | 270 175 552 Remotely . | . . . Salvage Created 1334 | 112 701 521 Parts 66 | 3 22 41 Haulers Intercepted . | . . . Recyclers Shooed 6 | 1 5 . Parts Field Recycled . | . . . Retrieved Matter . | . . . Parts Self-Destructed 11 | . . 11 Prevented . | . . . Kills | -11 -10 -10 ------- Run | Yrd Mat Sub Combat Hostiles Destroyed 17 | . 7 10 Guns 13 | . 6 7 Cannons 3 | . . 3 Classes Destroyed 11 | 2 4 5 Worker 1 | . 1 . Builder 2 | . 2 . Tunneler 1 | 1 . . Recycler 5 | 1 4 . Watcher 2 | . 2 . Swarmer 1 | . . 1 Grunt 8 | . 7 1 Sentry 1 | . . 1 Artisan 1 | . . 1 Cobbler 1 | . . 1 Subdweller 7 | . . 7 Best Kill Streak 4 | 1 4 2 Combat Bots Only 2 | . 2 2 Max Kills in Single Turn 1 | 1 1 1 Gunslinging . | . . . Exploded . | . . . Melee . | . . . Uniques/NPCs Destroyed . | . . . Combat | -11 -10 -10 -------- Run | Yrd Mat Sub Hostile Shots Fired 82 | . 39 43 Missed 26 | . 14 12 Damage Taken 1155 | . 395 760 Core 250 | . 55 195 Absorbed by Shields . | . . . Redirected to Shielding 52 | . . 52 Core Remaining (%) 100 | 100 . . Volleys Fired 137 | 7 54 76 Largest 2 | 2 2 2 Hottest 100 | 100 100 83 Shots Fired 258 | 14 92 152 Gun 231 | 14 92 125 Cannon 27 | . . 27 Launcher . | . . . Special . | . . . Kinetic 152 | . . 152 Thermal 106 | 14 92 . Explosive . | . . . Electromagnetic . | . . . Robot Hit Streak 13 | 5 13 11 Robot Miss Streak 4 | 3 4 3 Penetration Max . | . . . Secondary Targets 1 | . . 1 Max Gunslinging Chain 1 | . . 1 Shots Hit Robots 138 | 8 66 64 Core Hits 59 | 3 28 28 Critical Kills . | . . . Critical Parts Destroyed 1 | . . 1 Critical Strikes 11 | . 9 2 Burn 9 | . 9 . Destroy 1 | . . 1 Blast 1 | . . 1 Melee Attacks . | . . . Impact . | . . . Slashing . | . . . Piercing . | . . . Sneak Attacks . | . . . Combat Hostiles . | . . . Follow-up Attacks . | . . . Damage Inflicted 2052 | 101 852 1099 Guns 1799 | 101 843 855 Cannons 244 | . . 244 Explosions . | . . . Melee . | . . . Ramming 9 | . 9 . Kinetic 1099 | . . 1099 Thermal 944 | 101 843 . Explosive . | . . . Electromagnetic . | . . . Impact . | . . . Slashing . | . . . Piercing . | . . . Highest Corruption 6 | . 6 6 Average Corruption 5 | . 4 6 Corruption Purged . | . . . Corruption Blocked . | . . . Effects 118 | . 34 84 Message Errors 29 | . 8 21 Matter Fused 22 | . 4 18 Heat Flow Errors 14 | . 4 10 Energy Discharges 12 | . 5 7 Parts Fused 1 | . . 1 Data Loss (minor) 17 | . 6 11 Data Loss (major) 8 | . 5 3 Misfires 7 | . 2 5 Alerts 7 | . . 7 Weapon Failures 1 | . . 1 Overload Shots . | . . . Overflow Damage . | . . . Projectiles . | . . . Explosions . | . . . Melee . | . . . Knockbacks 3 | . . 3 Impact . | . . . Kinetic 2 | . . 2 Secondary 1 | . . 1 Self-Inflicted Damage . | . . . Shots . | . . . Rammed 1 | . 1 . Targets Rammed 2 | . 2 . Kicked . | . . . Crushed 1 | . 1 . Highest Temperature 261 | 156 261 251 Average Temperature 61 | 59 48 107 Received Heat Transfer 288 | . 201 87 Siege Activations . | . . . Robots Corrupted . | . . . Combat Hostiles . | . . . Parts Fried . | . . . Impact Corruptions . | . . . Robots Melted 1 | . 1 . Combat Hostiles 1 | . 1 . Parts Melted 6 | . 6 . Heat Transferred 3442 | 296 3146 . Parts Sabotaged . | . . . Parts Stolen . | . . . Parts Stripped . | . . . Power Chain Reactions . | . . . Alert | -11 -10 -10 ------- Run | Yrd Mat Sub Peak Influence 156 | 10 156 . Initial 6 | . 6 . Average 19 | 3 21 . Maximum Alert Level . | . . . Low Security (%) 100 | 100 100 . Level 1 . | . . . Level 2 . | . . . Level 3 . | . . . Level 4 . | . . . Level 5 . | . . . High Security . | . . . Max Security . | . . . Squads Dispatched 1 | . 1 . Investigation . | . . . Extermination . | . . . Reinforcement 1 | . 1 . Assault . | . . . Garrison . | . . . Intercept . | . . . Searches Triggered . | . . . Construction Impeded . | . . . Haulers Reinforced . | . . . Active Scanning Responses . | . . . Cargo Convoy Interrupts . | . . . Stealth | -11 -10 -10 --------- Run | Yrd Mat Sub Distress Signals 1 | . 1 . Communications Jammed . | . . . Distress Signals . | . . . Times Spotted 25 | . 13 12 Peak Tracking Total 3 | . 3 2 Tactical Retreats 1 | . . 1 Traps | -11 -10 -10 ------- Run | Yrd Mat Sub Traps Triggered 11 | . 11 . Indirectly . | . . . Trap Hack Attempts . | . . . Triggered . | . . . Disarmed . | . . . Reprogrammed . | . . . Reused . | . . . Traps Extracted . | . . . Installed . | . . . Triggered 3 | . . 3 Machines | -11 -10 -10 ---------- Run | Yrd Mat Sub Machines Disabled . | . . . Max in Single Turn . | . . . Machines Repaired . | . . . Machines Dismantled . | . . . Machines Sabotaged . | . . . Overloaded Fab Kills . | . . . Hacking | -11 -10 -10 --------- Run | Yrd Mat Sub Machines Accessed 5 | . 5 . Terminals 5 | . 5 . Fabricators . | . . . Repair Stations . | . . . Recycling Units . | . . . Scanalyzers . | . . . Garrison Access . | . . . Total Hacks 13 | . 13 . Successful 5 | . 5 . Failed 8 | . 8 . Catastrophic 3 | . 3 . Database Lockouts . | . . . Manual 12 | . 12 . Terminals 13 | . 13 . Fabricators . | . . . Repair Stations . | . . . Recycling Units . | . . . Scanalyzers . | . . . Garrison Access . | . . . Terminal Hacks 1 | . 1 . Hauler Manifests 1 | . 1 . Fabricator Hacks . | . . . Repair Station Hacks . | . . . Recycling Unit Hacks . | . . . Scanalyzer . | . . . Garrison Access Hacks . | . . . Unauthorized Hacks 4 | . 4 . Terminals 4 | . 4 . Botnet 4 | . 4 . Fabricators . | . . . Repair Stations . | . . . Recycling Units . | . . . Scanalyzers . | . . . Garrison Access . | . . . Data Cores Recovered . | . . . Used . | . . . Hacking Detections 5 | . 5 . Full Trace Events 1 | . 1 . Feedback Events . | . . . Feedback Blocked . | . . . Robot Schematics Acquired . | . . . Robots Built . | . . . Authchips . | . . . Time . | . . . Total Robot Build Rating . | . . . Part Schematics Acquired . | . . . Parts Built . | . . . Authchips . | . . . Time . | . . . Total Part Build Rating . | . . . Parts Repaired . | . . . Time . | . . . Parts Recycled . | . . . Recycled Matter . | . . . Retrieved Matter . | . . . Retrieved Components . | . . . Parts Scanalyzed . | . . . Part Schematics Acquired . | . . . Parts Damaged . | . . . Bothacking | -11 -10 -10 ------------ Run | Yrd Mat Sub Used RIF Installer . | . . . Robots Hacked . | . . . Non-combat . | . . . Combat . | . . . Robot Hacks Applied . | . . . Relay Couplers Released . | . . . Fabnet Peak Effective % . | . . . Robots Rewired . | . . . Allies Hacked . | . . . Hacks Repelled . | . . . Allies | -11 -10 -10 -------- Run | Yrd Mat Sub Total Allies . | . . . Largest Group . | . . . Highest-Rated Group . | . . . Highest-Rated Ally . | . . . Total Orders . | . . . Ally Attacks . | . . . Total Damage . | . . . Kills . | . . . Allies Corrupted . | . . . Allies Melted . | . . . Intel | -11 -10 -10 ------- Run | Yrd Mat Sub Robot Analysis Total . | . . . Derelict Logs Recovered 1 | . . 1 Drone Launches . | . . . Drone Recoveries . | . . . Exploration | -11 -10 -10 ------------- Run | Yrd Mat Sub Turns Passed 5028 | 176 2141 2711 Spaces Moved 1985 | 91 885 1009 Core 4 | 3 1 . Treads 1981 | 88 884 1009 Legs . | . . . Wheels . | . . . Hover . | . . . Flight . | . . . Fastest Speed 50 | 50 160 240 Average Speed 218 | 156 199 240 Slowest Speed 250 | 160 250 240 Overloaded Moves . | . . . Propulsion Burnouts . | . . . Robots Hopped . | . . . Cave-ins Triggered . | . . . Exploration Rate (%) 52 | 6 99 51 Regions Visited 2 Branch Regions 1 Pre-discovered Areas 1 | . . 1 Known Exits Taken . | . . . Unknown Exits Taken 2 | 1 1 . Scrap Searched 5 | . . 5 Spaces Dug . | . . . Terrain Destroyed 5 | . . 5 Melee . | . . . Projectile 5 | . . 5 AOE . | . . . Terrain Rammed . | . . . Walls Destroyed . | . . . Machines Disabled . | . . . Actions | -11 -10 -10 --------- Run | Yrd Mat Sub Total 2429 | 107 1167 1155 Wait 210 | . 185 25 Move 1983 | 90 884 1009 Hop . | . . . Pick Up 31 | 3 19 9 Fast Attach 27 | 7 13 7 Attach 4 | . 3 1 Detach 4 | . 2 2 Swap 13 | . 1 12 Drop 18 | . 4 14 Fire 137 | 7 54 76 Melee . | . . . Ram . | . . . Kick . | . . . Crush 2 | . 2 . Escape Stasis . | . . . Rewire . | . . . Trap . | . . . Miscellaneous . | . . . Route ------- -11/Scrapyard -10/Materials (discovered 5 exits: [*Mat x3] / [*Min] / [*Sub]) -10/Subcaves (discovered 2 exits: [*Mat x2]) History --------- Turn | Location | Event 6 | -11/Scrapyard | Discovered new exit (range 16) 177 | -11/Scrapyard | Entered Materials 311 | -10/Materials | Build established: Mutant 465 | -10/Materials | Discovered new exit (range 15) 675 | -10/Materials | Discovered new exit (range 16) 935 | -10/Materials | Discovered new exit (range 16) 1135 | -10/Materials | Discovered new exit (range 9) 2297 | -10/Materials | Discovered new exit (range 10) 2318 | -10/Materials | Entered Subcaves 2378 | -10/Subcaves | Learned location of Recycling (-8) 2721 | -10/Subcaves | Shifting Twisted Machinery released Unknown Special Weapon 2964 | -10/Subcaves | Shifting Twisted Machinery released Sub. Machine Gun 3535 | -10/Subcaves | Discovered new exit (range 10) 4004 | -10/Subcaves | A swath of the cavern ceiling suddenly collapsed 4217 | -10/Subcaves | Core integrity fell below 50% 4668 | -10/Subcaves | A swath of the cavern ceiling suddenly collapsed 4864 | -10/Subcaves | Ambushed by Subdwellers from Twisted Machinery 4874 | -10/Subcaves | Core integrity fell below 20% 4933 | -10/Subcaves | Discovered new exit (range 10) 5029 | -10/Subcaves | Ambushed by Subdweller buried in earth 5029 | -10/Subcaves | Destroyed by JC-7GV(R) with Subdweller Laser Last Messages --------------- 04886_ System corrupted: Component data lost. 04894_ VN-U55(R) knocked back. 04894_ VN-U55(R) suffers critical hit (Destroy). 04894_ Destroyed Sub. Machine Gun. 04894_ Weapon Shielding destroyed. 04897_ Slug penetrates LK-845(R). 04900_ LK-845(R) destroyed. 04902_ System corrupted: Matter fused (-7). 04910_ Acquired 39 matter. 04915_ Acquired Sub. Power Source. 04924_ System corrupted: IFF burst signal emitted. 04933_ EXIT=FOUND 04945_ System corrupted: Component data lost. 04969_ Z S#XL1X=Z8C 7V 0YG&L OM 05026_ XQ-NPU(R) destroyed. 05027_ System corrupted: Heat flow error (+227). 05029_ 6W-MY5(R) Sub. Optics blasted off. Map ----- +----------------------------------------------------+ | | | ?????????????????????????????????????????????????? | | ?????????????????????????????????????????????????? | | ?????????????????????????????????????????????????? | | ?????????????????????????????????????????????????? | | ?????????????????????????????????????????????????? | | ?????????????????????????????????????????????????? | | ?????????????????????????????????????????????????? | | ?????????????????????????????????????????????????? | | ?????????????????????????????????????????????????? | | ?????????????????????????????????????????????????? | | ?????????????????????????????????????????????????? | | ?????????????????????????????????????????????????? | | ?????????????????????????????????????????????????? | | ?????????????????????????????????????????????????? | | ???????????????????????????????????#?????????????? | | ????????????# ## ?????????????#??# ??????????????? | | ???????????? ??????????? ###R#??????????????? | | ??????????? ???????? #???????????????? | | ??????????? ???????? ????????????????? | | ???????????# ??????? ?????????????????? | | ????????????# ?????? #??????????????????? | | ?????????????# ????? % #??????????????????? | | ?????????????# ?????&% #???????????????????? | | ?????????????# #?###%R#####????????????????? | | ??????????????# ## @[=! ;#????????????????? | | ?????????????## ##????????????????? | | ?????????##### #????????????????? | | ?????????# ## ##????????????????? | | ???????? ####?? #?????#??????????? | | ???????? ### ##?????##???? #??????????? | | ????????? ## ???## ##???????#"" #??????????? | | ??????????????#??????# #?????""""< ???????????? | | ????????????????????## #?????""" "????????????? | | ???????????????????## ##????"" #?????????????? | | ???????????????????# ##???" #??????????????? | | ?????????????????### " #### ##?????????????? | | ?????????????????# #?????????????? | | ?????????????????# ###???????????? | | ?????????????????# #???????????? | | ?????????????????## ## #???????????? | | ??????????????????# #### ##??????????? | | ??????????????????# #??## #??????????? | | ?????????????????## ## #??# #??????????? | | ?????????????????# ### #?## ##??????????? | | ????????????????# ##?# #??# ##??????????? | | ????????????????#####??# #??# #??????????? | | ???????????????????????# #??# #??????????? | | ????????????????????????# ###% % ##??????????? | | ????????????????????????# & "#??????????? | +----------------------------------------------------+ Best States ------------- Heat Dissipation 35 Energy Generation 15 Energy Capacity 250 Matter Stores 300 Matter Capacity 300 Sight Range 16 Terrain Scan Density 10 Weapon Shielding 33 Evasion (%) 40 Recoil Reduction 2 Item Schematics ----------------- None Robot Schematics ------------------ None Fabricated ------------ Nothing Alien Tech Used ----------------- None Achievements -------------- None Challenges ------------ None Game ------ Seed MultinovaMinesnifferDevice Manual? 0 Play Time 00:22:17 Cumulative 70.3 hours Start 2024.04.10 @ 22:07:25 End 2024.04.10 @ 22:29:33 Sessions 1 Manual Loads 0 Difficulty Rogue Special Mode None Game No. 72 Rogue 72 Adventurer 0 Explorer 0 Win Type - Total 1 Types 1/0/0/0/0/0/0/0/0 Lore% 33 Gallery% 46 Achievement% 41 Wizard Run 0 Options --------- Layout 0 ASCII 0 Keyboard 1 Movement Numpad Keybinds 0 Fullscreen 2 Font 24/Smallcaps Map View 76x50 Zoom Use 0% Tactical HUD 1 Map Filters NONE Filters NONE Steam 1 RUN: 173b4893-880b-4353-aab1-b4a6b4adf236